fUSD/lending_fUSD_20241222
["ID","MTS","AMOUNT","RATE_DAILY","PERIOD"]
[346308093,1734882651208,-24401.304037,0.000198,2]
[346308095,1734882651217,-24401.304037,0.000198,2]
[346308097,1734882651227,-24401.304037,0.000198,2]
[346308099,1734882651236,-24401.304037,0.000198,2]
[346308101,1734882651245,-24401.304037,0.000198,2]
[346308103,1734882651255,-24401.304037,0.000198,2]
[346308105,1734882651264,-24401.304037,0.000198,2]
[346308133,1734882651522,-24401.304037,0.000198,2]
[346308137,1734882651546,-24401.304037,0.000198,2]
[346308139,1734882651556,-24401.304037,0.000198,2]
[346308141,1734882651566,-24401.304037,0.000198,2]
[346308143,1734882651578,-24401.304037,0.000198,2]
[346308145,1734882651588,-24401.304037,0.000198,2]
[346308147,1734882651598,-24401.304037,0.000198,2]
[346308149,1734882651607,-24401.304037,0.000198,2]
[346308151,1734882651617,-24401.304037,0.000198,2]
[346308153,1734882651626,-24401.304037,0.000198,2]
[346308155,1734882651636,-24401.304037,0.000198,2]
[346308157,1734882651644,-24401.304037,0.000198,2]
[346308159,1734882651654,-24401.304037,0.000198,2]
[346308161,1734882651663,-24401.304037,0.000198,2]
[346308163,1734882651672,-150.0,0.00019801,2]
[346308164,1734882651681,-150.0,0.00019801,2]
[346308167,1734882651691,-150.0,0.00019802,2]
[346308169,1734882651700,-987.54739333,0.00019809,2]
[346308171,1734882651710,-150.0,0.00019809,2]
[346308172,1734882651720,-150.0,0.00019815,2]
[346308175,1734882651730,-150.0,0.00019817,2]
[346308176,1734882651740,-150.0,0.00019819,2]
[346308178,1734882651750,-150.0,0.0001982,2]
[346308181,1734882651760,-150.0,0.00019822,2]
[346308183,1734882651769,-150.0,0.00019834,2]
[346308185,1734882651779,-150.0,0.00019835,2]
[346308187,1734882651788,-150.0,0.00019836,2]
[346308189,1734882651799,-150.0,0.00019839,2]
[346308191,1734882651808,-500.0,0.00019839,2]
[346308193,1734882651818,-500.0,0.0001984,2]
[346308195,1734882651830,-500.0,0.0001984,2]
[346308197,1734882651841,-2000.0,0.0001984,2]
[346308199,1734882651850,-500.0,0.0001984,2]
[346308201,1734882651859,-500.0,0.0001984,2]
[346308203,1734882651869,-200.0,0.0001984,2]
[346308205,1734882651878,-150.0,0.00019842,2]
[346308207,1734882651888,-150.0,0.00019843,2]
[346308209,1734882651897,-423.27634811,0.00019843,2]
[346308211,1734882651910,-150.0,0.00019844,2]
[346308213,1734882651919,-150.0,0.00019845,2]
[346308215,1734882651929,-150.0,0.00019846,2]
[346308217,1734882651938,-194.11,0.00019851,2]
[346308219,1734882651948,-150.0,0.00019854,2]
[346308221,1734882651956,-150.0,0.00019854,2]
[346308223,1734882651966,-987.54739333,0.00019854,2]
[346308225,1734882651975,-150.0,0.00019861,2]
[346308227,1734882651985,-150.0,0.00019862,2]
[346308229,1734882651993,-150.0,0.00019863,2]
[346308231,1734882652003,-32221.0,0.00019863,2]
[346308233,1734882652012,-150.0,0.00019871,2]
[346308235,1734882652021,-150.0,0.00019875,2]
[346308237,1734882652030,-25970.60718337,0.00019879,2]
[346308239,1734882652040,-1080.450673,0.00019879,2]
[346308241,1734882652049,-150.0,0.0001988,2]
[346308243,1734882652058,-4502.616,0.00019882,2]
[346308245,1734882652067,-234.683,0.00019882,2]
[346308247,1734882652080,-150.0,0.00019894,2]
[346308249,1734882652089,-150.0,0.00019895,2]
[346308251,1734882652099,-987.54739333,0.000199,2]
[346308253,1734882652111,-1378.0,0.000199,2]
[346308255,1734882652121,-152.87935033,0.000199,2]
[346308257,1734882652131,-152.87935033,0.000199,2]
[346308259,1734882652140,-152.87935033,0.000199,2]
[346308261,1734882652150,-152.87935033,0.000199,2]
[346308263,1734882652159,-152.87,0.000199,2]
[346308265,1734882652168,-40390.08241398,0.000199,2]
[346308267,1734882652178,-2509.0,0.000199,2]
[346308269,1734882652188,-150.0,0.00019901,2]
[346308271,1734882652198,-150.0,0.00019902,2]
[346308273,1734882652207,-150.0,0.00019909,2]
[346308275,1734882652216,-150.0,0.00019909,2]
[346308277,1734882652226,-150.0,0.00019916,2]
[346308279,1734882652235,-1000.0,0.00019921,2]
[346308281,1734882652244,-150.0,0.00019924,2]
[346308283,1734882652253,-150.0,0.00019925,2]
[346308285,1734882652263,-150.0,0.00019927,2]
[346308287,1734882652273,-150.0,0.00019928,2]
[346308289,1734882652282,-150.0,0.0001993,2]
[346308291,1734882652292,-150.0,0.00019934,2]
[346308293,1734882652302,-150.0,0.00019936,2]
[346308295,1734882652311,-150.0,0.00019958,2]
[346308297,1734882652320,-150.0,0.00019963,2]
[346308299,1734882652329,-150.0,0.00019965,2]
[346308301,1734882652339,-150.0,0.00019967,2]
[346308303,1734882652348,-400.0,0.0001997,2]
[346308305,1734882652357,-552.17852518,0.0001997,2]
[346308307,1734882652366,-150.0,0.00019971,2]
[346308309,1734882652375,-150.0,0.00019972,2]
[346308311,1734882652385,-500.0,0.00019973,2]
[346308313,1734882652395,-500.20297702,0.00019973,2]
[346308315,1734882652405,-500.89787548,0.00019973,2]
[346308317,1734882652414,-150.0,0.00019973,2]
[346308319,1734882652424,-150.0,0.00019973,2]
[346308321,1734882652433,-113272.27556688,0.00019979,2]
[346308323,1734882652442,-150.0,0.00019979,2]
[346308325,1734882652451,-152.0,0.00019984,4]
[346308327,1734882652460,-80097.40320666,0.00019985,2]
[346308329,1734882652470,-262.81,0.00019986,2]
[346308331,1734882652480,-152.0,0.00019986,2]
[346308333,1734882652489,-152.0,0.00019986,2]
[346308335,1734882652499,-152.0,0.00019986,2]
[346308337,1734882652509,-152.0,0.00019986,2]
[346308339,1734882652518,-152.0,0.00019986,2]
[346308341,1734882652528,-152.0,0.00019986,2]
[346308343,1734882652537,-152.0,0.00019986,2]
[346308345,1734882652546,-152.0,0.00019986,2]
[346308347,1734882652556,-152.0,0.00019986,2]
[346308349,1734882652566,-295.67,0.00019986,2]
[346308351,1734882652576,-150.0,0.00019986,2]
[346308353,1734882652586,-150.0,0.00019987,2]
[346308355,1734882652595,-150.0,0.00019987,2]
[346308358,1734882652606,-150.0,0.00019988,2]
[346308360,1734882652615,-150.0,0.00019988,2]
[346308361,1734882652624,-742.49,0.00019989,2]
[346308363,1734882652634,-150.0,0.00019991,2]
[346308365,1734882652643,-150.0,0.00019991,2]
[346308368,1734882652653,-150.0,0.00019992,2]
[346308370,1734882652662,-150.0,0.00019998,2]
[346308372,1734882652672,-300.0,0.00019999,2]
[346308374,1734882652681,-666.0,0.00019999,2]
[346308376,1734882652691,-150.0,0.00019999,2]
[346308378,1734882652701,-46247698.9779856,0.0002,2]
[346308380,1734882652709,-1954.79088936,0.0002,2]
[346308381,1734882652719,-2771.80477259,0.0002,7]
[346308384,1734882652728,-11698.9608648,0.0002,2]
[346308385,1734882652737,-470.67910585,0.0002,10]
[346308387,1734882652747,-8026.13592569,0.0002,2]
[346308389,1734882652756,-2052.05070564,0.0002,2]
[346308391,1734882652766,-40954.59294647,0.0002,2]
[346308393,1734882652775,-151.0,0.0002,2]
[346308395,1734882652784,-240.94080892,0.0002,2]
[346308397,1734882652794,-811.98693779,0.0002,2]
[346308399,1734882652803,-207.0,0.0002,2]
[346308401,1734882652813,-152.396621,0.0002,2]
[346308403,1734882652823,-151.0,0.0002,2]
[346308405,1734882652834,-151.0,0.0002,2]
[346308407,1734882652843,-151.0,0.0002,2]
[346308409,1734882652853,-151.0,0.0002,2]
[346308411,1734882652862,-151.0,0.0002,2]
[346308413,1734882652871,-151.0,0.0002,2]
[346308415,1734882652881,-151.0,0.0002,2]
[346308417,1734882652890,-206.699624,0.0002,2]
[346308419,1734882652900,-204.0,0.0002,2]
[346308421,1734882652912,-203.0,0.0002,2]
[346308424,1734882652922,-214.0,0.0002,2]
[346308425,1734882652932,-213.0,0.0002,2]
[346308428,1734882652942,-3392.6406025,0.0002,2]
[346308430,1734882652952,-800.0,0.0002,2]
[346308432,1734882652961,-202.6,0.0002,2]
[346308434,1734882652971,-202.6,0.0002,2]
[346308435,1734882652979,-202.6,0.0002,2]
[346308438,1734882652989,-2788.05,0.0002,2]
[346308439,1734882652998,-1224.0,0.0002,7]
[346308442,1734882653007,-2000.0,0.0002,2]
[346308444,1734882653017,-638.362625,0.0002,2]
[346308445,1734882653027,-200.0,0.0002,2]
[346308448,1734882653037,-3145.470924,0.0002,2]
[346308450,1734882653046,-591.45,0.0002,2]
[346308452,1734882653056,-500.0,0.0002,2]
[346308454,1734882653065,-500.0,0.0002,2]
[346308456,1734882653075,-651.89,0.0002,2]
[346308458,1734882653085,-1000.0,0.0002,2]
[346308460,1734882653095,-1000.0,0.0002,2]
[346308462,1734882653107,-1000.0,0.0002,2]
[346308464,1734882653116,-1000.0,0.0002,2]
[346308466,1734882653126,-500.0,0.0002,2]
[346308468,1734882653136,-1000.0,0.0002,2]
[346308470,1734882653146,-1000.0,0.0002,2]
[346308472,1734882653155,-1000.0,0.0002,2]
[346308474,1734882653165,-1000.0,0.0002,2]
[346308476,1734882653174,-1000.0,0.0002,2]
[346308478,1734882653184,-1000.0,0.0002,2]
[346308480,1734882653194,-1000.0,0.0002,2]
[346308482,1734882653204,-1000.0,0.0002,2]
[346308484,1734882653214,-1000.0,0.0002,2]
[346308486,1734882653223,-1000.0,0.0002,2]
[346308488,1734882653233,-1000.0,0.0002,2]
[346308490,1734882653242,-1000.0,0.0002,2]
[346308492,1734882653251,-1000.0,0.0002,2]
[346308494,1734882653261,-1000.0,0.0002,2]
[346308496,1734882653272,-1000.0,0.0002,2]
[346308498,1734882653281,-1000.0,0.0002,2]
[346308500,1734882653290,-1000.0,0.0002,2]
[346308502,1734882653300,-1000.0,0.0002,2]
[346308504,1734882653309,-1000.0,0.0002,2]
[346308506,1734882653319,-1000.0,0.0002,2]
[346308508,1734882653330,-1000.0,0.0002,2]
[346308509,1734882653339,-1000.0,0.0002,2]
[346308511,1734882653348,-1000.0,0.0002,2]
[346308513,1734882653358,-1000.0,0.0002,2]
[346308515,1734882653367,-1000.0,0.0002,2]
[346308517,1734882653376,-1000.0,0.0002,2]
[346308519,1734882653385,-1000.0,0.0002,2]
[346308521,1734882653395,-1000.0,0.0002,2]
[346308523,1734882653404,-1000.0,0.0002,2]
[346308525,1734882653413,-217.14106938,0.0002,2]
[346308527,1734882653423,-203.0,0.0002,2]
[346308529,1734882653432,-208.0,0.0002,2]
[346308531,1734882653441,-210.0,0.0002,2]
[346308533,1734882653450,-641.90244412,0.0002,2]
[346308535,1734882653460,-207.0,0.0002,2]
[346308536,1734882653469,-500.14437083,0.0002,2]
[346308537,1734882653478,-2000.0,0.0002,2]
[346308538,1734882653488,-203.0,0.0002,2]
[346308539,1734882653498,-200.0,0.0002,2]
[346308540,1734882653508,-156.296692,0.0002,2]
[346308541,1734882653517,-208.0,0.0002,2]
[346308542,1734882653527,-210.0,0.0002,2]
[346308543,1734882653536,-373.74483347,0.0002,2]
[346308544,1734882653546,-500.0,0.0002,2]
[346308545,1734882653556,-502.7,0.0002,2]
[346308546,1734882653565,-500.0,0.0002,2]
[346308547,1734882653577,-500.0,0.0002,2]
[346308548,1734882653586,-586.08,0.0002,2]
[346308549,1734882653596,-500.0,0.0002,2]
[346308551,1734882653607,-500.0,0.0002,2]
[346308553,1734882653616,-716.84,0.0002,2]
[346308555,1734882653626,-824.23,0.0002,2]
[346308557,1734882653636,-500.0,0.0002,2]
[346308559,1734882653646,-500.0,0.0002,2]
[346308561,1734882653655,-500.0,0.0002,2]
[346308563,1734882653665,-578.52,0.0002,2]
[346308565,1734882653674,-500.0,0.0002,2]
[346308567,1734882653683,-500.0,0.0002,2]
[346308569,1734882653693,-511.85,0.0002,2]
[346308571,1734882653702,-630.08839638,0.0002,2]
[346308573,1734882653711,-500.0,0.0002,2]
[346308575,1734882653720,-500.0,0.0002,2]
[346308577,1734882653730,-500.0,0.0002,2]
[346308579,1734882653740,-500.0,0.0002,2]
[346308581,1734882653749,-500.0,0.0002,2]
[346308583,1734882653758,-881.76,0.0002,2]
[346308585,1734882653767,-500.0,0.0002,2]
[346308587,1734882653777,-570.72,0.0002,2]
[346308589,1734882653787,-500.0,0.0002,2]
[346308591,1734882653796,-500.0,0.0002,2]
[346308593,1734882653806,-500.0,0.0002,2]
[346308595,1734882653815,-500.0,0.0002,2]
[346308597,1734882653825,-564.2,0.0002,2]
[346308599,1734882653835,-540.17,0.0002,2]
[346308601,1734882653845,-500.0,0.0002,2]
[346308603,1734882653854,-573.83,0.0002,2]
[346308605,1734882653864,-500.0,0.0002,2]
[346308607,1734882653874,-500.0,0.0002,2]
[346308609,1734882653883,-500.0,0.0002,2]
[346308611,1734882653893,-500.0,0.0002,2]
[346308613,1734882653902,-921.35,0.0002,2]
[346308615,1734882653913,-500.0,0.0002,2]
[346308617,1734882653922,-500.0,0.0002,2]
[346308619,1734882653932,-500.0,0.0002,2]
[346308621,1734882653941,-500.0,0.0002,2]
[346308623,1734882653951,-500.0,0.0002,2]
[346308625,1734882653960,-500.0,0.0002,2]
[346308627,1734882653969,-500.0,0.0002,2]
[346308629,1734882653979,-500.0,0.0002,2]
[346308631,1734882653989,-500.0,0.0002,2]
[346308633,1734882653999,-500.0,0.0002,2]
[346308635,1734882654009,-150.94,0.0002,2]
[346308637,1734882654018,-500.0,0.0002,2]
[346308639,1734882654029,-500.0,0.0002,2]
[346308641,1734882654038,-500.0,0.0002,2]
[346308643,1734882654047,-500.0,0.0002,2]
[346308645,1734882654057,-500.0,0.0002,2]
[346308647,1734882654067,-5177.1,0.0002,2]
[346308649,1734882654079,-910.91,0.0002,2]
[346308651,1734882654088,-500.0,0.0002,2]
[346308653,1734882654098,-574.9,0.0002,2]
[346308655,1734882654111,-500.0,0.0002,2]
[346308657,1734882654121,-500.0,0.0002,2]
[346308659,1734882654131,-575.9,0.0002,2]
[346308661,1734882654143,-637.49,0.0002,2]
[346308663,1734882654153,-500.0,0.0002,2]
[346308665,1734882654163,-1047.25,0.0002,2]
[346308667,1734882654173,-253.10356861,0.0002,2]
[346308669,1734882654183,-592.03,0.0002,2]
[346308671,1734882654195,-500.0,0.0002,2]
[346308673,1734882654206,-500.0,0.0002,2]
[346308675,1734882654215,-500.0,0.0002,2]
[346308677,1734882654225,-1014.19,0.0002,2]
[346308679,1734882654235,-500.0,0.0002,2]
[346308681,1734882654244,-435.12751765,0.0002,2]
[346308683,1734882654253,-500.0,0.0002,2]
[346308685,1734882654263,-500.0,0.0002,2]
[346308687,1734882654273,-500.0,0.0002,2]
[346308689,1734882654282,-557.86,0.0002,2]
[346308690,1734882654291,-500.0,0.0002,2]
[346308692,1734882654300,-200.0,0.0002,2]
[346308694,1734882654310,-2010.0,0.0002,2]
[346308696,1734882654319,-500.0,0.0002,2]
[346308698,1734882654329,-1287.008,0.0002,2]
[346308700,1734882654339,-500.0,0.0002,2]
[346308702,1734882654348,-500.0,0.0002,2]
[346308704,1734882654357,-500.0,0.0002,2]
[346308706,1734882654367,-500.0,0.0002,2]
[346308708,1734882654377,-500.0,0.0002,2]
[346308711,1734882654387,-500.0,0.0002,2]
[346308712,1734882654396,-814.44,0.0002,2]
[346308714,1734882654406,-790.54,0.0002,2]
[346308717,1734882654416,-772.949698,0.0002,2]
[346308718,1734882654425,-500.0,0.0002,2]
[346308721,1734882654435,-204.467,0.0002,2]
[346308723,1734882654444,-500.0,0.0002,2]
[346308725,1734882654454,-502.09,0.0002,2]
[346308727,1734882654463,-588.453,0.0002,2]
[346308729,1734882654472,-500.0,0.0002,2]
[346308730,1734882654482,-500.0,0.0002,2]
[346308733,1734882654492,-303.13182641,0.0002,2]
[346308735,1734882654501,-500.0,0.0002,2]
[346308737,1734882654511,-633.0,0.0002,2]
[346308739,1734882654520,-500.0,0.0002,2]
[346308741,1734882654530,-500.0,0.0002,2]
[346308743,1734882654540,-500.0,0.0002,2]
[346308745,1734882654550,-500.0,0.0002,2]
[346308747,1734882654560,-500.0,0.0002,2]
[346308749,1734882654569,-1907.652,0.0002,2]
[346308750,1734882654580,-500.0,0.0002,2]
[346308752,1734882654589,-500.0,0.0002,2]
[346308754,1734882654599,-500.0,0.0002,2]
[346308756,1734882654608,-1888.75,0.0002,2]
[346308759,1734882654618,-500.0,0.0002,2]
[346308761,1734882654627,-500.0,0.0002,2]
[346308762,1734882654636,-837.0,0.0002,2]
[346308765,1734882654646,-2606.18,0.0002,2]
[346308767,1734882654656,-799.1,0.0002,2]
[346308769,1734882654666,-500.0,0.0002,2]
[346308771,1734882654676,-3770.0,0.0002,2]
[346308773,1734882654686,-1980.69,0.0002,2]
[346308775,1734882654696,-500.0,0.0002,2]
[346308777,1734882654705,-500.0,0.0002,2]
[346308779,1734882654715,-500.0,0.0002,2]
[346308781,1734882654725,-587.86,0.0002,2]
[346308783,1734882654735,-500.0,0.0002,2]
[346308785,1734882654744,-11505.27,0.0002,2]
[346308787,1734882654754,-935.0,0.0002,2]
[346308789,1734882654764,-854.23,0.0002,2]
[346308791,1734882654773,-571.35,0.0002,2]
[346308793,1734882654783,-1134.72,0.0002,2]
[346308795,1734882654792,-500.0,0.0002,2]
[346308797,1734882654802,-1256.0,0.0002,2]
[346308814,1734882654966,-152.54903367,0.0002,2]
[346308816,1734882654976,-571.12,0.0002,2]
[346308818,1734882654986,-150.0,0.0002,2]
[346308820,1734882654995,-979.98,0.0002,2]
[346308822,1734882655005,-500.0,0.0002,2]
[346308824,1734882655015,-168.5351581,0.0002,2]
[346308826,1734882655025,-150.0,0.0002,2]
[346308828,1734882655034,-500.0,0.0002,2]
[346308830,1734882655044,-1000.0,0.0002,2]
[346308833,1734882655054,-536.0,0.0002,2]
[346308835,1734882655063,-1056.2,0.0002,2]
[346308837,1734882655073,-2730.53,0.0002,2]
[346308839,1734882655085,-3757.082,0.0002,2]
[346308841,1734882655095,-1282.97,0.0002,2]
[346308843,1734882655108,-500.0,0.0002,2]
[346308845,1734882655119,-617.69,0.0002,2]
[346308847,1734882655133,-890.57,0.0002,2]
[346308849,1734882655143,-2487.57,0.0002,2]
[346308851,1734882655153,-635.51,0.0002,2]
[346308853,1734882655163,-500.0,0.0002,2]
[346308855,1734882655173,-515.08,0.0002,2]
[346308857,1734882655185,-3077.0,0.0002,2]
[346308859,1734882655194,-500.0,0.0002,2]
[346308861,1734882655204,-738.32,0.0002,2]
[346308863,1734882655214,-745.08,0.0002,2]
[346308865,1734882655224,-1000.0,0.0002,2]
[346308867,1734882655233,-500.0,0.0002,2]
[346308870,1734882655243,-592.38,0.0002,2]
[346308872,1734882655253,-1867.07,0.0002,2]
[346308874,1734882655263,-500.0,0.0002,2]
[346308876,1734882655273,-5506.12,0.0002,2]
[346308878,1734882655283,-500.0,0.0002,2]
[346308880,1734882655293,-587.04,0.0002,2]
[346308882,1734882655303,-14033.87,0.0002,2]
[346308884,1734882655312,-3000.0,0.0002,2]
[346308886,1734882655322,-500.0,0.0002,2]
[346308888,1734882655335,-500.0,0.0002,2]
[346308890,1734882655345,-591.67,0.0002,2]
[346308892,1734882655355,-500.0,0.0002,2]
[346308894,1734882655366,-1258.01,0.0002,2]
[346308896,1734882655375,-500.0,0.0002,2]
[346308898,1734882655385,-653.93,0.0002,2]
[346308900,1734882655395,-5221.22,0.0002,2]
[346308902,1734882655405,-500.0,0.0002,2]
[346308904,1734882655415,-8085.7,0.0002,2]
[346308907,1734882655424,-760.09,0.0002,2]
[346308909,1734882655434,-46379.84,0.0002,2]
[346308911,1734882655444,-1378.49,0.0002,2]
[346308913,1734882655453,-678.04,0.0002,2]
[346308914,1734882655463,-500.0,0.0002,2]
[346308916,1734882655473,-4767.30806929,0.0002,2]
[346308919,1734882655483,-500.0,0.0002,2]
[346308921,1734882655493,-712.94,0.0002,2]
[346308923,1734882655503,-4066.18,0.0002,2]
[346308925,1734882655513,-1278.71,0.0002,2]
[346308927,1734882655523,-4767.30806922,0.0002,2]
[346308929,1734882655532,-500.0,0.0002,2]
[346308931,1734882655542,-2890.74,0.0002,2]
[346308933,1734882655551,-874.23,0.0002,2]
[346308935,1734882655562,-500.0,0.0002,2]
[346308937,1734882655571,-4767.30806922,0.0002,2]
[346308939,1734882655582,-500.0,0.0002,2]
[346308941,1734882655591,-5923.87,0.0002,2]
[346308943,1734882655601,-1186.46,0.0002,2]
[346308945,1734882655610,-1493.85,0.0002,2]
[346308947,1734882655621,-4767.30806922,0.0002,2]
[346308949,1734882655630,-1031.92,0.0002,2]
[346308951,1734882655641,-500.0,0.0002,2]
[346308953,1734882655653,-8469.63,0.0002,2]
[346308955,1734882655663,-4767.30806922,0.0002,2]
[346308957,1734882655673,-633.9,0.0002,2]
[346308959,1734882655683,-75754.11,0.0002,2]
[346308962,1734882655693,-5442.95,0.0002,2]
[346308964,1734882655703,-573.44,0.0002,2]
[346308966,1734882655713,-852.03,0.0002,2]
[346308968,1734882655722,-722.78,0.0002,2]
[346308970,1734882655732,-2305.83,0.0002,2]
[346308972,1734882655742,-4767.30806922,0.0002,2]
[346308974,1734882655752,-649.45,0.0002,2]
[346308976,1734882655762,-4767.30806922,0.0002,2]
[346308978,1734882655773,-500.0,0.0002,2]
[346308980,1734882655783,-21897.76,0.0002,2]
[346308982,1734882655793,-614.39,0.0002,2]
[346308984,1734882655803,-500.0,0.0002,2]
[346308986,1734882655812,-4767.30806922,0.0002,2]
[346308988,1734882655822,-1053.75,0.0002,2]
[346308990,1734882655832,-13534.81,0.0002,2]
[346308992,1734882655842,-756.25,0.0002,2]
[346308994,1734882655851,-2729.96,0.0002,2]
[346308996,1734882655861,-1034.09,0.0002,2]
[346308998,1734882655870,-4767.30806922,0.0002,2]
[346309000,1734882655880,-3043.67,0.0002,2]
[346309002,1734882655889,-560.8,0.0002,2]
[346309004,1734882655899,-4767.30806922,0.0002,2]
[346309006,1734882655910,-8326.5,0.0002,2]
[346309008,1734882655920,-6366.27,0.0002,2]
[346309010,1734882655930,-718.4,0.0002,2]
[346309012,1734882655939,-806.65,0.0002,2]
[346309014,1734882655948,-213.88254096,0.0002,2]
[346309016,1734882655958,-1342.83,0.0002,2]
[346309018,1734882655967,-4767.30806922,0.0002,2]
[346309020,1734882655976,-5230.13,0.0002,2]
[346309022,1734882655985,-500.0,0.0002,2]
[346309024,1734882655996,-500.0,0.0002,2]
[346309026,1734882656005,-4767.30806922,0.0002,2]
[346309028,1734882656014,-500.0,0.0002,2]
[346309030,1734882656024,-500.0,0.0002,2]
[346309032,1734882656035,-20409.72,0.0002,2]
[346309034,1734882656045,-150.0,0.0002,2]
[346309036,1734882656054,-266.3357231,0.0002,2]
[346309038,1734882656064,-150.0,0.0002,2]
[346309040,1734882656073,-4767.30806922,0.0002,2]
[346309042,1734882656084,-500.0,0.0002,2]
[346309044,1734882656093,-993.52,0.0002,2]
[346309046,1734882656104,-4767.30806922,0.0002,2]
[346309048,1734882656117,-500.0,0.0002,2]
[346309050,1734882656126,-150.0,0.0002,2]
[346309052,1734882656136,-1389.87,0.0002,2]
[346309055,1734882656147,-674.06,0.0002,2]
[346309056,1734882656158,-3466.01,0.0002,2]
[346309059,1734882656168,-2409.67,0.0002,2]
[346309061,1734882656179,-1573.66,0.0002,2]
[346309063,1734882656190,-593.07,0.0002,2]
[346309065,1734882656201,-4767.30806922,0.0002,2]
[346309067,1734882656211,-500.0,0.0002,2]
[346309069,1734882656221,-4767.30806922,0.0002,2]
[346309071,1734882656231,-704.01,0.0002,2]
[346309073,1734882656241,-7756.13,0.0002,2]
[346309075,1734882656251,-192.019,0.0002,2]
[346309077,1734882656261,-192.019,0.0002,2]
[346309079,1734882656271,-192.019,0.0002,2]
[346309080,1734882656280,-4767.30806922,0.0002,2]
[346309081,1734882656290,-1922.61,0.0002,2]
[346309082,1734882656300,-3988.68,0.0002,2]
[346309083,1734882656310,-500.0,0.0002,2]
[346309084,1734882656319,-4767.30806922,0.0002,2]
[346309085,1734882656329,-1544.59,0.0002,2]
[346309086,1734882656339,-4767.30806922,0.0002,2]
[346309087,1734882656349,-500.0,0.0002,2]
[346309088,1734882656359,-500.0,0.0002,2]
[346309089,1734882656370,-4767.30806922,0.0002,2]
[346309090,1734882656380,-713.2,0.0002,2]
[346309091,1734882656390,-27918.05,0.0002,2]
[346309092,1734882656399,-150.0,0.0002,2]
[346309094,1734882656408,-1242.79,0.0002,2]
[346309096,1734882656417,-9752.75,0.0002,2]
[346309097,1734882656426,-150.0,0.0002,2]
[346309099,1734882656436,-150.0,0.0002,2]
[346309101,1734882656445,-150.0,0.0002,2]
[346309103,1734882656455,-500.0,0.0002,2]
[346309106,1734882656465,-150.0,0.0002,2]
[346309107,1734882656474,-250.0,0.0002,2]
[346309110,1734882656484,-150.0,0.0002,2]
[346309112,1734882656494,-1475.0,0.0002,2]